fUST/lending_fUST_20250225
["ID","MTS","AMOUNT","RATE_DAILY","PERIOD"]
[354411693,1740477042891,-511.83720458,0.00069993,120]
[354411694,1740477042900,-502.55062878,0.00069993,120]
[354411695,1740477042910,-3270.84278042,0.00070126,6]
[354411696,1740477042920,-1363.91,0.00070136,120]
[354411697,1740477042929,-500.0,0.00070136,120]
[354411698,1740477042938,-3147.5,0.00070136,120]
[354411699,1740477042948,-500.0,0.00070136,120]
[354411700,1740477042958,-500.0,0.00070136,120]
[354411701,1740477042967,-500.0,0.00070136,120]
[354411702,1740477042977,-522.69,0.00070136,120]
[354411703,1740477042986,-1024.08,0.00070136,120]
[354411704,1740477042996,-850.92,0.00070136,120]
[354411705,1740477043006,-500.0,0.00070136,120]
[354411706,1740477043016,-1394.35,0.00070136,120]
[354411707,1740477043025,-544.34,0.00070136,120]
[354411708,1740477043036,-500.0,0.00070136,120]
[354411709,1740477043046,-694.76,0.00070136,120]
[354411710,1740477043055,-804.92,0.000702,60]
[354411711,1740477043065,-500.0,0.00070267,120]
[354411712,1740477043074,-500.0,0.00070267,120]
[354411713,1740477043084,-500.0,0.00070267,120]
[354411714,1740477043093,-478.37,0.00070267,120]
[354411715,1740477043103,-500.0,0.00070267,120]
[354411716,1740477043113,-500.0,0.00070267,120]
[354411717,1740477043122,-254.34,0.00070267,120]
[354411718,1740477043131,-500.0,0.00070267,120]
[354411719,1740477043140,-1082.31990766,0.00070267,20]
[354411720,1740477043221,-436.47762552,0.00070501,120]
[354411721,1740477043240,-500.0,0.00070501,3]
[354411722,1740477043249,-500.0,0.00070501,120]
[354411723,1740477043259,-500.0,0.00070501,120]
[354411724,1740477043269,-500.0,0.00070501,120]
[354411725,1740477043279,-820.46,0.00070501,120]
[354411726,1740477043290,-500.0,0.00070501,120]
[354411727,1740477043300,-14904.51,0.00070501,7]
[354411728,1740477043309,-986.35,0.00070501,120]
[354411729,1740477043319,-500.0,0.00070541,120]
[354411730,1740477043328,-500.0,0.00070541,120]
[354411731,1740477043338,-3270.84278042,0.00070674,6]
[354411732,1740477043347,-1363.91,0.00070684,120]
[354411733,1740477043357,-500.0,0.00070684,120]
[354411734,1740477043366,-3147.5,0.00070684,120]
[354411735,1740477043375,-500.0,0.00070684,120]
[354411736,1740477043385,-229.93,0.00070684,120]
[354411737,1740477043394,-500.0,0.00070684,120]
[354411738,1740477043404,-522.69,0.00070684,120]
[354411739,1740477043413,-1024.08,0.00070684,120]
[354411740,1740477043423,-850.92,0.00070684,120]
[354411741,1740477043432,-500.0,0.00070684,120]
[354411742,1740477043442,-1394.35,0.00070684,120]
[354411743,1740477043451,-544.34,0.00070684,120]
[354411744,1740477043460,-500.0,0.00070684,120]
[354411745,1740477043470,-694.76,0.00070684,120]
[354411746,1740477043480,-500.0,0.00070815,120]
[354411747,1740477043489,-500.0,0.00070815,120]
[354411748,1740477043499,-212.88508559,0.000709,120]
[354411750,1740477043508,-212.88508559,0.000709,120]
[354411752,1740477043517,-212.88508559,0.000709,120]
[354411753,1740477043527,-212.88508559,0.000709,120]
[354411754,1740477043539,-212.88508559,0.000709,120]
[354411755,1740477043549,-3270.84278042,0.0007099,6]
[354411756,1740477043559,-500.0,0.00071,30]
[354411757,1740477043569,-500.0,0.00071,30]
[354411758,1740477043578,-500.0,0.00071,30]
[354411759,1740477043588,-500.0,0.00071,30]
[354411760,1740477043597,-500.0,0.00071,30]
[354411761,1740477043607,-500.0,0.00071,30]
[354411762,1740477043617,-5000.0,0.00071,120]
[354411763,1740477043626,-35383.09,0.00071,30]
[354411764,1740477043636,-500.0,0.00071049,3]
[354411765,1740477043645,-329.20343495,0.00071049,120]
[354411766,1740477043655,-500.0,0.00071049,120]
[354411767,1740477043664,-599.54,0.00071049,120]
[354411768,1740477043674,-820.46,0.00071049,120]
[354411769,1740477043683,-500.0,0.00071049,120]
[354411770,1740477043692,-14904.51,0.00071049,7]
[354411771,1740477043702,-986.35,0.00071049,120]
[354411772,1740477043712,-1363.91,0.00071232,120]
[354411773,1740477043721,-500.0,0.00071232,120]
[354411774,1740477043730,-3147.5,0.00071232,120]
[354411775,1740477043739,-500.0,0.00071232,120]
[354411776,1740477043749,-500.0,0.00071232,120]
[354411777,1740477043758,-522.69,0.00071232,120]
[354411778,1740477043768,-1024.08,0.00071232,120]
[354411779,1740477043777,-850.92,0.00071232,120]
[354411780,1740477043789,-500.0,0.00071232,120]
[354411781,1740477043798,-1394.35,0.00071232,120]
[354411782,1740477043807,-544.34,0.00071232,120]
[354411783,1740477043821,-500.0,0.00071232,120]
[354411784,1740477043830,-694.76,0.00071232,120]
[354411785,1740477043839,-1029.14,0.000713,30]
[354411786,1740477043848,-3270.84278042,0.00071353,6]
[354411787,1740477043859,-500.0,0.00071363,120]
[354411788,1740477043869,-212.88508559,0.00071412,120]
[354411789,1740477043879,-500.0,0.00071597,3]
[354411790,1740477043888,-500.0,0.00071597,120]
[354411791,1740477043899,-820.46,0.00071597,120]
[354411792,1740477043909,-500.0,0.00071597,120]
[354411793,1740477043918,-14904.51,0.00071597,7]
[354411794,1740477043928,-986.35,0.00071597,120]
[354411795,1740477043937,-1363.91,0.0007178,120]
[354411796,1740477043946,-500.0,0.0007178,120]
[354411797,1740477043956,-3147.5,0.0007178,120]
[354411798,1740477043965,-500.0,0.0007178,120]
[354411799,1740477043975,-500.0,0.0007178,120]
[354411800,1740477043984,-522.69,0.0007178,120]
[354411801,1740477043994,-1024.08,0.0007178,120]
[354411802,1740477044003,-850.92,0.0007178,120]
[354411803,1740477044012,-500.0,0.0007178,120]
[354411804,1740477044021,-1394.35,0.0007178,120]
[354411805,1740477044030,-544.34,0.0007178,120]
[354411806,1740477044042,-500.0,0.0007178,120]
[354411807,1740477044051,-694.76,0.0007178,120]
[354411808,1740477044059,-500.0,0.00071911,120]
[354411809,1740477044068,-500.0,0.00072,30]
[354411810,1740477044078,-500.0,0.00072,30]
[354411811,1740477044087,-500.0,0.00072,30]
[354411812,1740477044096,-500.0,0.00072,30]
[354411813,1740477044108,-500.0,0.00072,30]
[354411814,1740477044123,-500.0,0.00072,30]
[354411815,1740477044136,-500.0,0.00072,30]
[354411816,1740477044150,-500.0,0.00072,30]
[354411817,1740477044162,-500.0,0.00072,30]
[354411818,1740477044174,-212.88508559,0.00072011,120]
[354411819,1740477044189,-500.0,0.00072145,3]
[354411820,1740477044202,-185.5,0.00072145,120]
[354411821,1740477044215,-820.46,0.00072145,120]
[354411822,1740477044228,-500.0,0.00072145,120]
[354411823,1740477044241,-14904.51,0.00072145,7]
[354411824,1740477044254,-986.35,0.00072145,120]
[354411825,1740477044268,-1363.91,0.00072328,120]
[354411826,1740477044280,-500.0,0.00072328,120]
[354411827,1740477044294,-3147.5,0.00072328,120]
[354411828,1740477044308,-500.0,0.00072328,120]
[354411829,1740477044320,-502.7,0.00072328,120]
[354411830,1740477044332,-522.69,0.00072328,120]
[354411831,1740477044346,-1024.08,0.00072328,120]
[354411832,1740477044358,-850.92,0.00072328,120]
[354411833,1740477044371,-500.0,0.00072328,120]
[354411834,1740477044382,-1394.35,0.00072328,120]
[354411835,1740477044393,-544.34,0.00072328,120]
[354411836,1740477044405,-500.0,0.00072328,120]
[354411837,1740477044417,-694.76,0.00072328,120]
[354411838,1740477044430,-500.0,0.00072459,120]
[354411839,1740477044444,-212.88508559,0.00072609,120]
[354411840,1740477044458,-500.0,0.00072693,3]
[354411841,1740477044471,-820.46,0.00072693,120]
[354411842,1740477044484,-500.0,0.00072693,120]
[354411843,1740477044498,-14904.51,0.00072693,7]
[354411844,1740477044510,-986.35,0.00072693,120]
[354411845,1740477044521,-1363.91,0.00072876,120]
[354411846,1740477044531,-500.0,0.00072876,120]
[354411847,1740477044545,-3147.5,0.00072876,120]
[354411848,1740477044558,-500.0,0.00072876,120]
[354411849,1740477044572,-522.69,0.00072876,120]
[354411850,1740477044585,-1024.08,0.00072876,120]
[354411851,1740477044596,-850.92,0.00072876,120]
[354411852,1740477044607,-500.0,0.00072876,120]
[354411853,1740477044619,-1394.35,0.00072876,120]
[354411854,1740477044631,-544.34,0.00072876,120]
[354411855,1740477044643,-500.0,0.00072876,120]
[354411856,1740477044655,-694.76,0.00072876,120]
[354411857,1740477044665,-500.0,0.00073007,120]
[354411858,1740477044676,-804.92,0.000731,60]
[354411859,1740477044687,-212.88508559,0.00073207,120]
[354411860,1740477044699,-500.0,0.00073241,3]
[354411861,1740477044711,-820.46,0.00073241,120]
[354411862,1740477044722,-500.0,0.00073241,120]
[354411863,1740477044733,-14904.51,0.00073241,7]
[354411864,1740477044745,-986.35,0.00073241,120]
[354411865,1740477044757,-1363.91,0.00073424,120]
[354411866,1740477044768,-500.0,0.00073424,120]
[354411867,1740477044779,-3147.5,0.00073424,120]
[354411868,1740477044791,-500.0,0.00073424,120]
[354411869,1740477044802,-522.69,0.00073424,120]
[354411870,1740477044813,-1024.08,0.00073424,120]
[354411871,1740477044826,-850.92,0.00073424,120]
[354411872,1740477044838,-500.0,0.00073424,120]
[354411873,1740477044850,-1394.35,0.00073424,120]
[354411874,1740477044862,-544.34,0.00073424,120]
[354411875,1740477044874,-500.0,0.00073424,120]
[354411876,1740477044885,-694.76,0.00073424,120]
[354411877,1740477044896,-500.0,0.00073555,120]
[354411878,1740477044908,-500.0,0.00073789,3]
[354411879,1740477044922,-820.46,0.00073789,120]
[354411880,1740477044933,-500.0,0.00073789,120]
[354411881,1740477044944,-14904.51,0.00073789,7]
[354411882,1740477044955,-986.35,0.00073789,120]
[354411883,1740477044967,-212.88508559,0.00073806,120]
[354411884,1740477044979,-1363.91,0.00073972,120]
[354411885,1740477044990,-500.0,0.00073972,120]
[354411886,1740477045001,-3147.5,0.00073972,120]
[354411887,1740477045013,-500.0,0.00073972,120]
[354411888,1740477045024,-522.69,0.00073972,120]
[354411889,1740477045039,-1024.08,0.00073972,120]
[354411890,1740477045051,-850.92,0.00073972,120]
[354411891,1740477045062,-500.0,0.00073972,120]
[354411892,1740477045074,-1394.35,0.00073972,120]
[354411893,1740477045085,-544.34,0.00073972,120]
[354411894,1740477045097,-500.0,0.00073972,120]
[354411895,1740477045108,-694.76,0.00073972,120]
[354411896,1740477045119,-500.0,0.00074103,120]
[354411897,1740477045129,-35383.09,0.000742,30]
[354411898,1740477045247,-1029.14,0.000742,30]
[354411899,1740477045263,-659.94,0.000743,30]
[354411900,1740477045273,-505.28,0.00074336,3]
[354411901,1740477045283,-820.46,0.00074336,120]
[354411902,1740477045293,-500.0,0.00074336,120]
[354411903,1740477045302,-8825.84500593,0.00074336,7]
[354411904,1740477045359,-1589.258305,0.00074336,7]
[354411905,1740477045517,-101.94293354,0.00065753,120]
[354411906,1740477045530,-398.05706646,0.00065753,120]
[354411907,1740477045540,-962.08,0.00067761,120]
[354411908,1740477045550,-962.08,0.00068309,120]
[354411909,1740477045560,-962.08,0.00068857,120]
[354411910,1740477045570,-962.08,0.00069405,120]
[354411911,1740477045579,-962.08,0.00069953,120]
[354411912,1740477045589,-962.08,0.00070501,120]
[354411913,1740477045598,-962.08,0.00071049,120]
[354411915,1740477045607,-962.08,0.00071597,120]
[354411917,1740477045617,-962.08,0.00072145,120]
[354411918,1740477045626,-4489.40668907,0.00074336,7]
[354411920,1740477045635,-986.35,0.00074336,120]
[354411921,1740477045645,-212.88508559,0.00074404,120]
[354411922,1740477045654,-500.0,0.0007452,120]
[354411923,1740477045663,-3147.5,0.0007452,120]
[354411924,1740477045673,-500.0,0.0007452,120]
[354411925,1740477045682,-522.69,0.0007452,120]
[354411926,1740477045692,-1024.08,0.0007452,120]
[354411927,1740477045702,-850.92,0.0007452,120]
[354411928,1740477045712,-536.25,0.0007452,120]
[354411929,1740477045721,-1394.35,0.0007452,120]
[354411930,1740477045731,-544.34,0.0007452,120]
[354411931,1740477045741,-514.9,0.0007452,120]
[354411932,1740477045750,-694.76,0.0007452,120]
[354411933,1740477045760,-649.95963054,0.00074566,4]
[354411934,1740477045771,-499.87,0.00074651,120]
[354411935,1740477045781,-820.46,0.00074884,120]
[354411936,1740477045794,-500.0,0.00074884,120]
[354411937,1740477045804,-14904.51,0.00074884,7]
[354411938,1740477045815,-986.35,0.00074884,120]
[354411939,1740477045825,-212.88508559,0.00075003,120]
[354411940,1740477045835,-500.0,0.00075068,120]
[354411941,1740477045847,-3147.5,0.00075068,120]
[354411942,1740477045858,-551.64,0.00075068,120]
[354411943,1740477045867,-522.69,0.00075068,120]
[354411944,1740477045877,-1024.08,0.00075068,120]
[354411945,1740477045886,-850.92,0.00075068,120]
[354411946,1740477045895,-1394.35,0.00075068,120]
[354411947,1740477045906,-544.34,0.00075068,120]
[354411948,1740477045915,-694.76,0.00075068,120]
[354411949,1740477045925,-500.0,0.00075319,15]
[354411950,1740477045934,-820.46,0.00075432,120]
[354411951,1740477045944,-500.0,0.00075432,120]
[354411952,1740477045954,-14904.51,0.00075432,7]
[354411953,1740477045963,-986.35,0.00075432,120]
[354411954,1740477045972,-212.88508559,0.00075601,120]
[354411955,1740477045982,-500.0,0.00075616,120]
[354411957,1740477045991,-3147.5,0.00075616,120]
[354411958,1740477046001,-522.69,0.00075616,120]
[354411959,1740477046011,-1024.08,0.00075616,120]
[354411960,1740477046020,-850.92,0.00075616,120]
[354411961,1740477046030,-1394.35,0.00075616,120]
[354411962,1740477046040,-544.34,0.00075616,120]
[354411964,1740477046049,-694.76,0.00075616,120]
[354411965,1740477046058,-706.09,0.000757,30]
[354411967,1740477046068,-502.14957943,0.00075867,15]
[354411968,1740477046077,-500.0,0.00075972,120]
[354411969,1740477046086,-820.46,0.0007598,120]
[354411970,1740477046095,-500.0,0.0007598,120]
[354411971,1740477046104,-14904.51,0.0007598,7]
[354411973,1740477046114,-986.35,0.0007598,120]
[354411974,1740477046123,-499.109966,0.00076164,120]
[354411975,1740477046132,-3147.5,0.00076164,120]
[354411976,1740477046141,-522.69,0.00076164,120]
[354411977,1740477046151,-1024.08,0.00076164,120]
[354411978,1740477046160,-850.92,0.00076164,120]
[354411980,1740477046170,-1394.35,0.00076164,120]
[354411981,1740477046179,-544.34,0.00076164,120]
[354411982,1740477046188,-694.76,0.00076164,120]
[354411983,1740477046198,-212.88508559,0.000762,120]
[354411984,1740477046207,-804.92,0.000762,60]
[354411985,1740477046216,-820.46,0.00076528,120]
[354411986,1740477046225,-302.25,0.00076528,120]
[354411987,1740477046234,-14904.51,0.00076528,7]
[354411988,1740477046243,-986.35,0.00076528,120]
[354411989,1740477046253,-3147.5,0.00076712,120]
[354411990,1740477046262,-522.69,0.00076712,120]
[354411991,1740477046272,-1024.08,0.00076712,120]
[354411992,1740477046281,-850.92,0.00076712,120]
[354411993,1740477046292,-1394.35,0.00076712,120]
[354411994,1740477046301,-544.34,0.00076712,120]
[354411995,1740477046311,-694.76,0.00076712,120]
[354411996,1740477046320,-212.88508559,0.00076798,120]
[354411997,1740477046329,-500.0,0.00077,15]
[354411998,1740477046338,-500.0,0.00077,15]
[354411999,1740477046348,-500.0,0.00077,10]
[354412000,1740477046357,-820.46,0.00077076,120]
[354412001,1740477046366,-14904.51,0.00077076,7]
[354412002,1740477046376,-986.35,0.00077076,120]
[354412003,1740477046385,-3147.5,0.0007726,120]
[354412004,1740477046395,-522.69,0.0007726,120]
[354412005,1740477046405,-1024.08,0.0007726,120]
[354412006,1740477046414,-850.92,0.0007726,120]
[354412007,1740477046423,-1394.35,0.0007726,120]
[354412008,1740477046432,-544.34,0.0007726,120]
[354412009,1740477046442,-694.76,0.0007726,120]
[354412010,1740477046451,-212.88508559,0.00077396,120]
[354412011,1740477046460,-1000.0,0.00077548,15]
[354412012,1740477046469,-529.142526,0.00077548,15]
[354412013,1740477046479,-849.87191823,0.00077548,10]
[354412014,1740477046488,-820.46,0.00077624,120]
[354412015,1740477046497,-14904.51,0.00077624,7]
[354412016,1740477046506,-986.35,0.00077624,120]
[354412017,1740477046515,-3147.5,0.00077808,120]
[354412018,1740477046526,-522.69,0.00077808,120]
[354412019,1740477046535,-1024.08,0.00077808,120]
[354412020,1740477046547,-850.92,0.00077808,120]
[354412021,1740477046557,-1394.35,0.00077808,120]
[354412022,1740477046566,-544.34,0.00077808,120]
[354412023,1740477046576,-694.76,0.00077808,120]
[354412024,1740477046586,-212.88508559,0.00077995,120]
[354412025,1740477046595,-820.46,0.00078172,120]
[354412026,1740477046605,-14904.51,0.00078172,7]
[354412027,1740477046615,-986.35,0.00078172,120]
[354412029,1740477046624,-3996.73141334,0.000782,30]
[354412030,1740477046762,-500.0,0.00066665,120]
[354412031,1740477046772,-500.0,0.00067213,120]
[354412032,1740477046783,-962.08,0.00072693,120]
[354412033,1740477046794,-962.08,0.00073241,120]
[354412034,1740477046804,-962.08,0.00073789,120]
[354412035,1740477046813,-962.08,0.00074336,120]
[354412036,1740477046826,-962.08,0.00074884,120]
[354412037,1740477046836,-962.08,0.00075432,120]
[354412038,1740477046846,-962.08,0.0007598,120]
[354412039,1740477046855,-962.08,0.00076528,120]
[354412040,1740477046865,-962.08,0.00077076,120]
[354412041,1740477046876,-962.08,0.00077624,120]
[354412042,1740477046885,-962.08,0.00078172,120]
[354412043,1740477046896,-31386.35858666,0.000782,30]
[354412044,1740477046905,-1029.14,0.000782,30]
[354412045,1740477046915,-3147.5,0.00078356,120]
[354412046,1740477046924,-522.8520346,0.00078356,120]
[354412047,1740477046935,-1024.1704517,0.00078356,120]
[354412048,1740477046944,-851.1094984,0.00078356,120]
[354412049,1740477046953,-1394.36579084,0.00078356,120]
[354412050,1740477046963,-544.55,0.00078356,120]
[354412051,1740477046973,-694.78,0.00078356,120]
[354412052,1740477046983,-1075.6666,0.0007855,15]
[354412053,1740477046993,-212.88508559,0.00078593,120]
[354412054,1740477047002,-820.46,0.0007872,120]
[354412055,1740477047012,-14904.51,0.0007872,7]
[354412056,1740477047023,-986.35,0.0007872,120]
[354412057,1740477047032,-212.88508559,0.00079192,120]
[354412058,1740477047043,-820.57719896,0.00079268,120]
[354412059,1740477047053,-14904.61672652,0.00079268,7]
[354412060,1740477047062,-986.37,0.00079268,120]
[354412061,1740477047072,-212.88,0.0007979,120]
[354412062,1740477047081,-50000.0,0.0007989,120]
[354412063,1740477047091,-659.94,0.000799,30]
[354412064,1740477047100,-500.0,0.00080082,120]
[354412065,1740477047109,-2105.28,0.00082191,120]
[354412066,1740477047119,-2105.28,0.00082191,120]
[354412067,1740477047128,-2105.28,0.00082191,120]
[354412068,1740477047138,-2105.28,0.00082191,120]
[354412069,1740477047147,-2105.28,0.00082191,120]
[354412070,1740477047156,-2105.28,0.00082191,120]
[354412071,1740477047166,-2105.28,0.00082191,120]
[354412072,1740477047175,-2105.28,0.00082191,120]
[354412073,1740477047185,-2105.28,0.00082191,120]
[354412074,1740477047194,-2105.28,0.00082191,120]
[354412075,1740477047203,-2105.28,0.00082191,120]
[354412076,1740477047213,-2105.28,0.00082191,120]
[354412077,1740477047223,-2105.28,0.00082191,120]
[354412078,1740477047233,-2105.28,0.00082191,120]
[354412079,1740477047242,-2105.28,0.00082191,120]
[354412080,1740477047252,-2105.28,0.00082191,120]
[354412081,1740477047262,-2105.28,0.00082191,120]
[354412082,1740477047272,-2105.28,0.00082191,120]
[354412083,1740477047282,-2105.28,0.00082191,120]
[354412084,1740477047293,-2105.28,0.00082191,120]
[354412085,1740477047303,-2105.28,0.00082191,120]
[354412086,1740477047313,-2105.28,0.00082191,120]
[354412087,1740477047323,-2105.28,0.00082191,120]
[354412088,1740477047332,-151.0,0.000823,41]
[354412089,1740477047342,-2105.38436981,0.00082322,120]
[354412090,1740477047352,-160.0,0.00084889,120]
[354412091,1740477047361,-50000.0,0.0008489,120]
[354412092,1740477047371,-500.0,0.00085,30]
[354412093,1740477047380,-500.0,0.00085,30]
[354412094,1740477047390,-500.0,0.00085,30]
[354412095,1740477047399,-823.78,0.00087,120]
[354412096,1740477047501,-160.35455737,0.00087659,120]
[354412097,1740477047511,-50000.0,0.0008766,120]
[354412098,1740477047521,-58380.0,0.0009,120]
[354412099,1740477047531,-1488.16,0.0009,120]
[354412100,1740477047542,-500.0,0.00091,120]
[354412101,1740477047551,-500.0,0.0009137,14]
[354412102,1740477047561,-1000.0,0.00091918,14]
[354412103,1740477047570,-500.0,0.00092,30]
[354412104,1740477047580,-500.0,0.00092,30]
[354412105,1740477047590,-500.0,0.00092,120]
[354412106,1740477047599,-500.0,0.00092,120]
[354412107,1740477047609,-500.0,0.00092,120]
[354412108,1740477047618,-500.0,0.00092,120]
[354412109,1740477047628,-500.0,0.00092,120]
[354412110,1740477047637,-1000.0,0.0009292,14]
[354412111,1740477047647,-500.0,0.00095,120]
[354412112,1740477047657,-500.0,0.00098,120]
[354412113,1740477047666,-13753.84271499,0.0009866,120]
[354412114,1740477047675,-706.09,0.000987,60]
[354412115,1740477047684,-50000.0,0.0009887,120]
[354412116,1740477047694,-231.234027,0.00109589,120]
[354412117,1740477047703,-10000.0,0.00109834,120]
[354412118,1740477047712,-804.92,0.0011,60]
[354412119,1740477047721,-371.72521069,0.00121266,120]
[354412120,1740477052677,-9628.27478931,0.00121266,120]
[354412121,1740477052687,-500.0,0.00125,120]
[354412122,1740477052696,-481.787,0.00125084,120]
[354412123,1740477052705,-352.526,0.00125084,120]
[354412124,1740477052715,-2294.065,0.00125084,120]
[354412125,1740477052724,-22347.27812529,0.001299,2]
[354412126,1740477053207,-500.0,0.00067761,120]
[354412127,1740477053216,-521.79,0.00068309,120]
[354412128,1740477053225,-962.08,0.0007872,120]
[354412129,1740477053235,-962.279578,0.00079268,120]
[354412130,1740477053244,-67652.72187471,0.001299,2]
[354412131,1740477053254,-151.236143,0.001299,5]
[354412132,1740477053263,-10000.0,0.0013,120]
[354412133,1740477053272,-10000.0,0.00133887,120]
[354412134,1740477053282,-231.234027,0.00136986,120]
[354412135,1740477053294,-659.94,0.00137,60]
[354412136,1740477053303,-10000.0,0.00147822,120]
[354412137,1740477053314,-318.980456,0.00149411,30]
[354412138,1740477053324,-10000.0,0.00163208,120]
[354412139,1740477053334,-1303.47492,0.00169175,90]
[354412140,1740477053343,-10000.0,0.00180194,120]
[354412141,1740477053352,-800.0,0.0019,120]
[354412142,1740477053362,-151.0,0.00198949,120]
[354412143,1740477053371,-10000.0,0.00198949,120]
[354412144,1740477053384,-1809.3344,0.00201,92]
[354412145,1740477053393,-10000.0,0.00219656,120]
[354412146,1740477053402,-318.980456,0.00224116,30]
[354412147,1740477053411,-35383.09,0.00225,30]
[354412148,1740477053420,-10000.0,0.00242518,120]
[354412149,1740477053429,-2000.0,0.0026,120]
[354412150,1740477053439,-10000.0,0.00267759,120]
[354412151,1740477053448,-5000.0,0.0027,120]
[354412152,1740477053457,-502.0740609,0.00273972,120]
[354412153,1740477053467,-151.0,0.00273973,120]
[354412154,1740477053476,-179.856299,0.00273973,120]
[354412155,1740477053485,-172.983607,0.00273973,120]
[354412156,1740477053494,-172.983607,0.00273973,120]
[354412157,1740477053503,-172.983607,0.00273973,120]
[354412158,1740477053514,-172.983607,0.00273973,120]
[354412159,1740477053523,-172.983607,0.00273973,120]
[354412160,1740477053532,-172.983607,0.00273973,120]
[354412161,1740477053543,-172.983607,0.00273973,120]
[354412162,1740477053552,-172.983607,0.00273973,120]
[354412163,1740477053561,-172.983607,0.00273973,120]
[354412164,1740477053571,-172.983607,0.00273973,120]
[354412165,1740477053580,-172.983607,0.00273973,120]
[354412166,1740477053589,-172.98361,0.00273973,120]
[354412167,1740477053598,-177.655037,0.00273973,120]
[354412168,1740477053608,-177.655037,0.00273973,120]
[354412169,1740477053617,-177.655037,0.00273973,120]
[354412170,1740477053626,-961.138979,0.00273973,60]
[354412171,1740477053635,-177.655037,0.00273973,120]
[354412172,1740477053645,-961.138979,0.00273973,60]
[354412173,1740477053654,-177.655037,0.00273973,120]
[354412174,1740477053663,-961.138979,0.00273973,60]
[354412175,1740477053672,-177.655037,0.00273973,120]
[354412176,1740477053681,-961.138979,0.00273973,60]
[354412177,1740477053690,-177.655037,0.00273973,120]
[354412178,1740477053699,-961.138979,0.00273973,60]
[354412179,1740477053709,-177.655037,0.00273973,120]
[354412180,1740477053718,-961.138979,0.00273973,60]
[354412181,1740477053727,-177.655037,0.00273973,120]
[354412182,1740477053736,-961.138979,0.00273973,60]
[354412183,1740477053745,-177.655037,0.00273973,120]
[354412184,1740477053755,-961.138979,0.00273973,60]
[354412185,1740477053764,-177.655037,0.00273973,120]
[354412186,1740477053773,-961.138979,0.00273973,60]
[354412187,1740477053783,-177.655037,0.00273973,120]
[354412188,1740477053793,-961.138979,0.00273973,60]
[354412189,1740477053802,-961.138979,0.00273973,60]
[354412190,1740477053811,-961.138979,0.00273973,60]
[354412191,1740477053902,-177.655037,0.00273973,120]
[354412192,1740477053914,-961.138979,0.00273973,60]
[354412193,1740477053924,-177.655037,0.00273973,120]
[354412194,1740477053933,-961.138979,0.00273973,60]
[354412195,1740477053943,-177.655037,0.00273973,120]
[354412196,1740477053952,-961.138979,0.00273973,60]
[354412197,1740477053961,-177.655037,0.00273973,120]
[354412198,1740477053970,-961.138979,0.00273973,60]
[354412199,1740477053979,-961.138979,0.00273973,60]
[354412200,1740477053988,-177.655037,0.00273973,120]
[354412201,1740477053998,-961.138979,0.00273973,60]
[354412202,1740477054008,-177.655037,0.00273973,120]
[354412203,1740477054017,-961.138979,0.00273973,60]